bitfinex-derivatives/quotes_BTCF0:USTF0_20241226
["timestamp","ask_amount","ask_price","bid_price","bid_amount"]
[1735183815379,0.040527,98783.0,98779.0,0.040528]
[1735183815882,0.040527,98783.0,98782.0,0.7208]
[1735183816273,0.040527,98783.0,98782.0,0.73113718]
[1735183816472,0.040527,98783.0,98782.0,0.73613718]
[1735183816670,0.040527,98783.0,98782.0,0.74513718]
[1735183816881,0.040527,98783.0,98782.0,0.38513718]
[1735183818581,0.040527,98783.0,98782.0,0.38413718]
[1735183819785,0.040527,98783.0,98782.0,0.74413718]
[1735183824483,0.040527,98783.0,98782.0,0.7338]
[1735183824893,0.040527,98783.0,98782.0,0.013]
[1735183833490,0.15146881,98786.0,98782.0,0.013]
[1735183833792,0.18113856,98794.0,98793.0,0.040523]
[1735183833981,0.18113856,98795.0,98793.0,0.040523]
[1735183834289,0.00151876,98803.0,98794.0,0.05134]
[1735183834491,0.19317684,98808.0,98807.0,0.040517]
[1735183834876,0.19317684,98808.0,98807.0,0.040557]
[1735183835081,0.19317684,98808.0,98807.0,0.400557]
[1735183835689,0.09086672,98809.0,98808.0,0.040516]
[1735183836783,0.09086672,98809.0,98808.0,0.040556]
[1735183837179,0.09086672,98814.0,98808.0,0.040556]
[1735183837691,0.09086672,98814.0,98813.0,4e-05]
[1735183838884,0.040514,98815.0,98813.0,4e-05]
[1735183839091,0.040514,98815.0,98813.0,0.00304]
[1735183839293,0.040514,98815.0,98814.0,4e-05]
[1735183840490,0.040518,98804.0,98803.0,0.18143078]
[1735183841405,0.040518,98804.0,98802.0,0.3608]
[1735183841588,0.0498,98803.0,98802.0,0.3608]
[1735183841790,0.040519,98802.0,98795.0,0.18143078]
[1735183842098,0.0498,98803.0,98795.0,0.18143078]
[1735183842481,0.090319,98803.0,98802.0,4e-05]
[1735183842799,0.090319,98803.0,98802.0,0.00104]
[1735183844687,0.090319,98803.0,98802.0,4e-05]
[1735183849998,0.0498,98803.0,98802.0,4e-05]
[1735183850188,0.09067915,98804.0,98802.0,0.401359]
[1735183850384,0.09067915,98804.0,98803.0,0.0495]
[1735183850600,0.12115563,98809.0,98803.0,0.40954]
[1735183850898,0.12115563,98809.0,98808.0,0.040556]
[1735183851402,0.1022,98818.0,98817.0,0.040513]
[1735183851895,0.1022,98818.0,98817.0,0.040553]
[1735183853296,0.12115563,98829.0,98827.0,0.040508]
[1735183853699,0.12115563,98829.0,98828.0,4e-05]
[1735183854001,0.12115563,98829.0,98828.0,0.36004]
[1735183854199,0.12115563,98829.0,98828.0,0.41244]
[1735183854600,0.040506,98835.0,98828.0,0.452948]
[1735183854989,0.040506,98835.0,98834.0,4e-05]
[1735183855792,0.041506,98835.0,98834.0,4e-05]
[1735183856298,0.040506,98835.0,98834.0,4e-05]
[1735183856498,0.042506,98835.0,98834.0,4e-05]
[1735183859298,0.3628,98835.0,98814.0,0.18143078]
[1735183859503,0.040514,98815.0,98814.0,0.18143078]
[1735183859701,0.040514,98815.0,98807.0,0.04203503]
[1735183859702,0.040514,98814.0,98810.0,0.18143078]
[1735183859907,0.092215,98813.0,98810.0,0.18143078]
[1735183861202,0.092215,98813.0,98808.0,0.040516]
[1735183862000,0.092215,98813.0,98810.0,0.002]
[1735183863196,0.092215,98813.0,98810.0,0.008]
[1735183863600,0.092215,98813.0,98810.0,0.003]
[1735183863797,0.0517,98813.0,98811.0,0.040515]
[1735183864002,0.12167564,98827.0,98826.0,0.040509]
[1735183864204,0.12115563,98827.0,98826.0,0.401309]
[1735183864400,0.15129461,98830.0,98829.0,0.040508]
[1735183864600,0.15129461,98830.0,98829.0,0.400508]
[1735183864909,0.18141056,98836.0,98835.0,0.040505]
[1735183865209,0.18141056,98836.0,98835.0,0.401345]
[1735183865896,0.040499,98852.0,98835.0,0.72084]
[1735183866099,0.040499,98852.0,98840.0,0.08857801]
[1735183866300,0.22161305,98853.0,98851.0,4e-05]
[1735183866702,0.22161305,98853.0,98849.0,0.0405]
[1735183866703,0.22161305,98853.0,98852.0,4e-05]
[1735183867308,0.1006,98853.0,98852.0,4e-05]
[1735183868798,0.1046,98853.0,98852.0,4e-05]
[1735183869203,0.1096,98853.0,98852.0,4e-05]
[1735183869806,0.1096,98853.0,98852.0,0.00104]
[1735183870002,0.1096,98853.0,98769.0,0.02808918]
[1735183870003,0.1096,98853.0,98838.0,0.00990937]
[1735183870202,0.040505,98836.0,98835.0,0.00064]
[1735183870402,0.3608,98842.0,98829.0,0.18143078]
[1735183870403,0.040507,98830.0,98829.0,0.18143078]
[1735183870800,0.0586,98853.0,98829.0,0.18143078]
[1735183871104,0.0586,98853.0,98852.0,4e-05]
[1735183871105,0.0546,98853.0,98852.0,4e-05]
[1735183871402,0.0586,98853.0,98852.0,4e-05]
[1735183872402,0.0536,98853.0,98852.0,4e-05]
[1735183873113,0.0596,98853.0,98852.0,0.00104]
[1735183873508,0.1103,98853.0,98852.0,0.00104]
[1735183877113,0.1103,98853.0,98844.0,0.040502]
[1735183877114,0.040501,98845.0,98844.0,0.040502]
[1735183877312,0.040503,98840.0,98835.0,0.08857801]
[1735183877617,0.0507,98844.0,98835.0,0.08857801]
[1735183878119,0.091202,98844.0,98843.0,4e-05]
[1735183878915,0.091202,98844.0,98826.0,0.3608]
[1735183878916,0.040508,98828.0,98826.0,0.3608]
[1735183879114,0.0517,98827.0,98826.0,0.3608]
[1735183880018,0.04051,98823.0,98820.0,0.12908901]
[1735183880217,0.04051,98823.0,98820.0,0.040511]
[1735183881113,0.04051,98823.0,98820.0,0.05066777]
[1735183882018,0.0489,98822.0,98820.0,0.05166777]
[1735183882414,0.0489,98822.0,98820.0,0.05366777]
[1735183882717,0.089411,98822.0,98820.0,0.003]
[1735183883214,0.089411,98822.0,98815.0,0.36231782]
[1735183883215,0.040513,98816.0,98815.0,0.00151782]
[1735183884718,0.040513,98816.0,98815.0,0.00351782]
[1735183884918,0.3608,98818.0,98811.0,0.36]
[1735183885118,0.3608,98818.0,98807.0,0.18139361]
[1735183885119,0.040516,98808.0,98807.0,0.18139361]
[1735183885931,0.3608,98810.0,98804.0,0.18139361]
[1735183886119,0.040518,98805.0,98804.0,0.46139361]
[1735183887323,0.040518,98805.0,98804.0,0.28]
[1735183888217,0.041518,98805.0,98804.0,0.288]
[1735183888514,0.041518,98805.0,98804.0,0.292]
[1735183890223,0.001,98805.0,98804.0,0.292]
[1735183890425,0.001,98805.0,98804.0,0.332518]
[1735183890923,0.0506,98817.0,98804.0,0.332518]
[1735183890924,0.0506,98817.0,98815.0,0.040513]
[1735183891226,0.0506,98817.0,98816.0,0.36084]
[1735183891429,0.1211072,98827.0,98816.0,0.36084]
[1735183891614,0.1211072,98827.0,98826.0,0.040509]
[1735183891926,0.1211072,98827.0,98826.0,0.320549]
[1735183892515,0.0506,98835.0,98826.0,0.320549]
[1735183892717,0.091106,98835.0,98834.0,0.3608]
[1735183892913,0.091106,98835.0,98834.0,0.36084]
[1735183895519,0.093106,98835.0,98834.0,0.36084]
[1735183896223,0.094106,98835.0,98834.0,0.36084]
[1735183899417,0.094106,98835.0,98834.0,4e-05]
[1735183921642,0.003,98835.0,98834.0,0.040546]
[1735183922254,0.003,98835.0,98834.0,0.320546]
[1735183922556,0.15486752,98835.0,98834.0,0.320546]
[1735183923252,0.0015181,98842.0,98834.0,0.38697043]
[1735183923462,0.0015181,98842.0,98841.0,0.040503]
[1735183923657,0.0015181,98842.0,98841.0,0.040543]
[1735183924540,0.0085181,98842.0,98841.0,0.040543]
[1735183924743,0.007,98842.0,98841.0,4e-05]
[1735183925049,0.12839253,98842.0,98841.0,4e-05]
[1735183926353,0.007,98842.0,98841.0,4e-05]
[1735183926553,0.007,98842.0,98841.0,0.01604983]
[1735183926744,0.007,98842.0,98841.0,4e-05]
[1735183926941,0.040508,98828.0,98827.0,0.3608]
[1735183927143,0.040511,98822.0,98821.0,0.0015177]
[1735183927855,0.3608,98828.0,98814.0,0.42348021]
[1735183928154,0.3608,98819.0,98814.0,0.42348021]
[1735183928350,0.0998,98818.0,98814.0,0.42348021]
[1735183929049,0.121348,98817.0,98813.0,0.18164747]
[1735183929354,0.040514,98815.0,98813.0,0.18164747]
[1735183929555,0.121348,98817.0,98813.0,0.18164747]
[1735183930239,0.04051,98824.0,98811.0,0.040515]
[1735183930240,0.121348,98819.0,98811.0,0.040515]
[1735183930438,0.121348,98819.0,98814.0,0.005]
[1735183930646,0.121348,98819.0,98814.0,0.007]
[1735183931047,0.121348,98819.0,98814.0,0.002]
[1735183931247,0.121348,98819.0,98818.0,4e-05]
[1735183931548,0.040512,98820.0,98818.0,4e-05]
[1735183931947,0.040512,98820.0,98819.0,4e-05]
[1735183933754,0.040512,98820.0,98819.0,0.00104]
[1735183934557,0.040512,98820.0,98819.0,0.00304]
[1735183938469,0.0519,98823.0,98822.0,0.040511]
[1735183938953,0.0519,98823.0,98822.0,0.040551]
[1735183939550,0.0519,98823.0,98822.0,0.042551]
[1735183943763,0.0519,98823.0,98822.0,0.05866574]
[1735183952861,0.0519,98823.0,98822.0,0.01815474]
[1735183953157,0.09241,98823.0,98822.0,0.01815474]
[1735183954160,0.5,108630.0,98822.0,0.01815474]
[1735183954461,0.11014021,98893.0,98878.0,0.040488]
[1735183954650,0.09665212,98893.0,98881.0,0.040487]
[1735183954849,0.09665212,98893.0,98884.0,0.3608]
[1735183955056,0.09665212,98893.0,98892.0,0.3608]
[1735183955258,0.1046,98898.0,98892.0,0.36084]
[1735183955461,0.1046,98898.0,98897.0,0.3608]
[1735183955666,0.1046,98898.0,98897.0,0.36084]
[1735183955862,0.1,98900.0,98897.0,0.36084]
[1735183956255,0.1,98900.0,98899.0,4e-05]
[1735183956455,0.0548,98912.0,98899.0,4e-05]
[1735183956669,0.06874466,98912.0,98911.0,0.3608]
[1735183956861,0.10921866,98912.0,98911.0,0.3608]
[1735183957564,1.38921866,98912.0,98911.0,0.36084]
[1735183957763,1.38921866,98912.0,98911.0,0.60139211]
[1735183958069,1.39554369,98912.0,98911.0,0.60139211]
[1735183958368,0.11554369,98912.0,98911.0,0.60139211]
[1735183958564,0.11554369,98912.0,98911.0,0.36084]
[1735183958762,0.12354369,98912.0,98911.0,0.36184]
[1735183958960,1.39721866,98912.0,98911.0,0.36184]
[1735183959362,1.39621866,98912.0,98911.0,0.36184]
[1735183960063,2.05701866,98912.0,98897.0,0.3608]
[1735183960363,0.040483,98891.0,98886.0,0.040484]
[1735183960564,0.040484,98889.0,98886.0,0.040484]
[1735183961472,1.320484,98889.0,98886.0,0.040484]
[1735183962066,0.040484,98887.0,98886.0,0.24482043]
[1735183963461,0.040484,98887.0,98886.0,0.005]
[1735183963866,0.040484,98887.0,98886.0,0.003]
[1735183964066,0.040484,98887.0,98886.0,0.005]
[1735183964769,0.040484,98887.0,98886.0,0.002]
[1735183965170,0.1071,98890.0,98882.0,0.3608]
[1735183965356,0.040486,98883.0,98882.0,0.3608]
[1735183968170,0.1071,98890.0,98882.0,0.3628]
[1735183968387,0.1071,98890.0,98882.0,0.3638]
[1735183968981,0.040486,98883.0,98882.0,0.3638]
[1735183969283,0.040486,98883.0,98882.0,0.3618]
[1735183970476,0.040486,98883.0,98882.0,0.3608]
[1735183970782,0.040487,98880.0,98879.0,0.66069473]
[1735183971083,0.040487,98880.0,98879.0,0.3608]
[1735183971878,0.040487,98880.0,98879.0,0.78669862]
[1735183972180,0.040487,98880.0,98879.0,0.78769862]
[1735183973585,0.093787,98880.0,98879.0,0.78769862]
[1735183973885,0.093787,98880.0,98879.0,0.78669862]
[1735183974075,0.093787,98880.0,98879.0,0.3618]
[1735183974278,0.093787,98880.0,98879.0,0.3608]
[1735183974580,0.095787,98880.0,98879.0,0.3608]
[1735183974984,0.100787,98880.0,98879.0,0.3608]
[1735183975283,0.100787,98880.0,98879.0,0.66111946]
[1735183975485,0.095787,98880.0,98879.0,0.66111946]
[1735183975678,0.097787,98880.0,98879.0,0.66111946]
[1735183975880,0.097787,98880.0,98879.0,0.30031946]
[1735183976087,0.097787,98880.0,98879.0,0.41857914]
[1735183976590,0.096787,98880.0,98879.0,0.41857914]
[1735183977890,0.04049,98873.0,98872.0,0.30061125]
[1735183978791,0.0573,98880.0,98872.0,0.41487475]
[1735183978997,0.04249,98873.0,98872.0,0.41487475]
[1735183980595,0.04349,98873.0,98872.0,0.41487475]
[1735183981599,0.04349,98873.0,98872.0,0.77567475]
[1735183982382,0.003,98873.0,98872.0,0.77567475]
[1735183982693,0.002,98873.0,98872.0,0.83447475]
[1735183983286,0.002,98873.0,98872.0,1.34392653]
[1735183983594,0.001,98873.0,98872.0,1.34692653]
[1735183984090,0.04049,98874.0,98872.0,1.34292653]
[1735183984299,0.04049,98874.0,98872.0,1.34192653]
[1735183985085,0.18496101,98890.0,98873.0,1.50005479]
[1735183985393,0.04049,98874.0,98873.0,1.50005479]
[1735183986480,0.08857801,98890.0,98873.0,1.50005479]
[1735183986685,0.01398044,98890.0,98882.0,0.3608]
[1735183986988,0.08857801,98892.0,98882.0,0.3608]
[1735183987384,0.12906001,98892.0,98891.0,4e-05]
[1735183987585,0.040482,98892.0,98891.0,4e-05]
[1735183988291,0.041482,98892.0,98891.0,0.41491475]
[1735183988491,0.044482,98892.0,98891.0,0.41491475]
[1735183988890,0.041482,98892.0,98891.0,0.41491475]
[1735183989195,0.047482,98892.0,98891.0,0.41491475]
[1735183989785,0.046482,98892.0,98891.0,0.41491475]
[1735183989995,0.049482,98892.0,98891.0,0.41491475]
[1735183990691,1.329482,98892.0,98891.0,0.41491475]
[1735183991095,1.329482,98892.0,98891.0,0.41591475]
[1735183991700,1.323482,98892.0,98891.0,0.41491475]
[1735183991895,1.329482,98892.0,98891.0,0.41491475]
[1735183992690,0.049482,98892.0,98891.0,0.41491475]
[1735183992891,0.046482,98892.0,98891.0,0.41491475]
[1735183993093,0.049482,98892.0,98891.0,0.41491475]
[1735183995508,0.009,98892.0,98891.0,0.41491475]
[1735183995799,0.3608,98948.0,98892.0,0.221]
[1735183996003,0.05625712,98932.0,98930.0,0.3608]
[1735183996302,0.040466,98932.0,98930.0,0.3608]
[1735183997394,0.040466,98932.0,98931.0,0.41487475]
[1735183998097,0.041466,98932.0,98931.0,0.41487475]
[1735183998803,0.041466,98932.0,98931.0,0.41587475]
[1735183999290,0.044466,98932.0,98931.0,0.41587475]
[1735184000699,0.044466,98932.0,98931.0,0.001]
[1735184000900,0.042466,98932.0,98931.0,0.001]
[1735184001703,0.04255661,98932.0,98930.0,0.3608]
[1735184002095,0.0889,98947.0,98930.0,0.3608]
[1735184002294,0.040466,98932.0,98930.0,0.3608]
[1735184002894,0.043466,98932.0,98930.0,0.3608]
[1735184003899,0.041466,98932.0,98930.0,0.3608]
[1735184004295,0.040466,98932.0,98930.0,0.3608]
[1735184006006,0.040466,98932.0,98931.0,0.23961525]
[1735184007208,0.040466,98932.0,98930.0,0.60041525]
[1735184008901,0.040466,98932.0,98930.0,0.3608]
[1735184011199,0.040467,98930.0,98928.0,0.23961525]
[1735184011610,0.0508,98929.0,98928.0,0.23961525]
[1735184012011,0.040467,98928.0,98922.0,0.23961525]
[1735184012212,0.0508,98929.0,98922.0,0.23961525]
[1735184012510,0.091267,98929.0,98928.0,4e-05]
[1735184013911,0.093267,98929.0,98928.0,4e-05]
[1735184014916,0.040468,98927.0,98926.0,0.1799425]
[1735184015316,0.040468,98927.0,98909.0,0.01123455]
[1735184015317,0.040469,98925.0,98924.0,0.1799425]
[1735184015717,0.040549,98925.0,98924.0,0.1799425]
[1735184016417,0.042549,98925.0,98924.0,0.1799425]
[1735184016721,0.042549,98925.0,98923.0,0.1799425]
[1735184017019,8e-05,98924.0,98923.0,0.1799425]
[1735184017917,0.04047,98921.0,98920.0,0.23961525]
[1735184018317,0.04055,98921.0,98920.0,0.23961525]
[1735184019718,0.040471,98919.0,98913.0,0.30016493]
[1735184019912,0.040469,98925.0,98913.0,0.30016493]
[1735184020521,0.040471,98919.0,98914.0,0.30016493]
[1735184020921,0.040471,98919.0,98915.0,0.0545]
[1735184021616,0.040471,98919.0,98917.0,0.30016493]
[1735184022115,0.040471,98919.0,98918.0,0.3648]
[1735184022618,0.040471,98919.0,98918.0,0.73939504]
[1735184022818,0.040471,98919.0,98918.0,0.74139504]
[1735184023416,0.040471,98919.0,98918.0,0.74039504]
[1735184025318,0.040471,98919.0,98918.0,1.10251768]
[1735184026119,0.040471,98919.0,98918.0,1.19085458]
[1735184026328,0.040471,98919.0,98918.0,1.18985458]
[1735184026519,0.040471,98919.0,98918.0,1.19085458]
[1735184031124,0.040471,98919.0,98918.0,1.18985458]
[1735184031919,0.040471,98919.0,98918.0,1.19085458]
[1735184033134,0.040471,98919.0,98918.0,1.18985458]
[1735184034032,0.040471,98919.0,98918.0,1.18785458]
[1735184034236,0.040471,98919.0,98918.0,0.73739504]
[1735184034618,0.040471,98919.0,98918.0,0.73939504]
[1735184041034,0.040471,98919.0,98918.0,1.10148836]
[1735184041433,0.438271,98919.0,98918.0,0.74068836]
[1735184041633,0.040479,98900.0,98899.0,0.42247642]
[1735184042221,0.39832001,98919.0,98899.0,0.42247642]
[1735184042433,0.040477,98906.0,98904.0,0.3608]
[1735184044738,0.040477,98906.0,98905.0,0.40722733]
[1735184045939,0.040477,98906.0,98905.0,0.41022733]
[1735184046930,0.040477,98906.0,98905.0,0.41222733]
[1735184048328,0.09009482,98920.0,98905.0,0.41222733]
[1735184048529,0.040477,98906.0,98905.0,0.41222733]
[1735184049238,0.040477,98906.0,98905.0,0.40922733]
[1735184049437,0.040477,98906.0,98905.0,0.77402733]
[1735184050143,0.040477,98906.0,98905.0,0.77202733]
[1735184050336,0.040471,98919.0,98905.0,0.77402733]
[1735184050524,0.3608,98916.0,98905.0,0.77402733]
[1735184050728,0.040477,98906.0,98905.0,0.77002733]
[1735184050925,0.040477,98906.0,98905.0,0.77102733]
[1735184051130,0.040477,98906.0,98905.0,0.77302733]
[1735184051332,0.040477,98906.0,98905.0,0.3628]
[1735184051532,0.040477,98906.0,98905.0,0.3668]
[1735184051937,0.040477,98906.0,98905.0,0.3658]
[1735184056451,0.040477,98906.0,98905.0,0.005]
[1735184057653,0.040477,98906.0,98905.0,0.34112592]
[1735184062651,0.040473,98915.0,98905.0,0.34112592]
[1735184062856,0.040473,98915.0,98913.0,0.3608]
[1735184063055,0.040473,98915.0,98914.0,4e-05]
[1735184063748,0.040473,98915.0,98914.0,0.69814625]
[1735184064644,0.040473,98915.0,98914.0,0.33616592]
[1735184065345,0.41880988,98940.0,98914.0,0.33616592]
[1735184065346,0.040469,98925.0,98914.0,0.33616592]
[1735184065655,0.040468,98926.0,98924.0,0.36084]
[1735184066146,0.040468,98926.0,98925.0,4e-05]
[1735184067054,0.041468,98926.0,98925.0,4e-05]
[1735184067558,0.040468,98926.0,98925.0,4e-05]
[1735184067744,0.042468,98926.0,98925.0,0.33616592]
[1735184067939,0.042468,98926.0,98925.0,0.34516364]
[1735184069957,0.042468,98926.0,98925.0,0.33616592]
[1735184071547,0.042468,98926.0,98925.0,4e-05]
[1735184087560,0.042468,98926.0,98925.0,0.24069449]
[1735184088660,0.042468,98926.0,98925.0,4e-05]
[1735184090865,0.042468,98926.0,98925.0,0.24069449]
[1735184092168,0.042468,98926.0,98925.0,4e-05]
[1735184095166,0.403268,98926.0,98925.0,4e-05]
[1735184096662,0.042468,98926.0,98925.0,4e-05]
[1735184099066,0.042468,98926.0,98925.0,0.24090229]
[1735184102371,0.042468,98926.0,98925.0,0.1807407]
[1735184104581,0.042468,98926.0,98925.0,4e-05]
[1735184105777,0.042468,98926.0,98925.0,0.1807407]
[1735184106680,0.042468,98926.0,98925.0,4e-05]
[1735184109181,0.042468,98926.0,98925.0,0.18068212]
[1735184110380,0.042468,98926.0,98925.0,4e-05]
[1735184112884,0.042468,98926.0,98925.0,0.18068212]
[1735184117480,0.042468,98926.0,98925.0,4e-05]
[1735184124783,0.040469,98923.0,98922.0,0.24086229]
[1735184125088,0.040469,98923.0,98914.0,0.30105452]
[1735184125089,0.040473,98915.0,98914.0,0.30105452]
[1735184125389,0.401273,98915.0,98914.0,0.30105452]
[1735184126786,0.401273,98915.0,98904.0,0.30105452]
[1735184126981,0.040477,98905.0,98904.0,0.30105452]
[1735184127991,0.040477,98905.0,98904.0,0.30805452]
[1735184128285,0.040477,98905.0,98904.0,0.33121499]
[1735184128593,0.040477,98905.0,98904.0,0.33521499]
[1735184133488,0.040477,98905.0,98904.0,0.31197015]
[1735184134891,0.040477,98905.0,98904.0,0.011]
[1735184135395,0.401277,98905.0,98904.0,0.011]
[1735184142193,0.040477,98905.0,98904.0,0.011]
[1735184146397,0.1215,98913.0,98904.0,0.011]
[1735184147004,0.161973,98913.0,98912.0,4e-05]
[1735184147908,0.522773,98913.0,98912.0,4e-05]
[1735184148204,0.522773,98913.0,98912.0,0.00404]
[1735184149498,0.522773,98913.0,98912.0,0.00604]
[1735184149499,0.040473,98913.0,98912.0,0.00604]
[1735184149698,0.040471,98918.0,98912.0,0.046514]
[1735184150014,0.15168599,98923.0,98912.0,0.046514]
[1735184150015,0.15168599,98922.0,98912.0,0.67624359]
[1735184150301,0.15168599,98922.0,98921.0,0.40127]
[1735184150903,0.15168599,98922.0,98921.0,0.40131]
[1735184151607,0.040468,98927.0,98921.0,0.72355554]
[1735184151807,0.040468,98927.0,98923.0,0.3608]
[1735184152008,0.040468,98927.0,98926.0,4e-05]
[1735184153098,0.040468,98927.0,98926.0,0.32228554]
[1735184154001,0.041468,98927.0,98926.0,0.32228554]
[1735184154406,0.040468,98927.0,98926.0,0.32228554]
[1735184154608,0.041468,98927.0,98926.0,0.6225159]
[1735184154910,0.042468,98927.0,98926.0,0.6225159]
[1735184155810,0.042468,98927.0,98926.0,4e-05]
[1735184156010,0.042468,98927.0,98926.0,0.3498883]
[1735184156011,0.002,98927.0,98926.0,0.3498883]
[1735184156310,0.3608,98961.0,98926.0,0.58634]
[1735184156311,0.0611,98958.0,98926.0,0.58634]
[1735184156509,0.07392769,98957.0,98945.0,0.3608]
[1735184156707,0.04046,98946.0,98945.0,0.3608]
[1735184158306,0.04046,98946.0,98945.0,0.3618]
[1735184158615,0.11538369,98957.0,98941.0,0.0612]
[1735184158616,0.11938369,98957.0,98941.0,0.0612]
[1735184158811,0.04146,98946.0,98945.0,0.001]
[1735184159407,0.04446,98946.0,98945.0,0.001]
[1735184159817,0.04046,98945.0,98943.0,0.17977021]
[1735184160505,0.04046,98945.0,98944.0,0.3608]
[1735184161615,0.040462,98942.0,98941.0,0.25054765]
[1735184162008,0.040462,98942.0,98941.0,0.07077744]
[1735184172111,0.040462,98942.0,98941.0,0.0612]
[1735184172316,0.040462,98940.0,98939.0,0.17977021]
[1735184172615,0.040464,98937.0,98936.0,0.3608]
[1735184173114,1.220464,98937.0,98936.0,0.3608]
[1735184173722,0.040464,98937.0,98936.0,0.3608]
[1735184181521,0.040464,98937.0,98936.0,0.68285589]
[1735184189928,0.040464,98937.0,98936.0,1.04441419]
[1735184191329,0.040464,98937.0,98936.0,0.68285589]
[1735184191630,0.133,98947.0,98936.0,0.68285589]
[1735184192129,0.040464,98937.0,98936.0,0.68285589]
[1735184193732,0.040464,98937.0,98936.0,1.04491]
[1735184197137,0.040464,98937.0,98936.0,0.68285589]
[1735184199139,0.040464,98937.0,98936.0,0.69085589]
[1735184199928,0.040464,98937.0,98936.0,1.06838287]
[1735184200632,0.12129838,98955.0,98954.0,0.040457]
[1735184200833,0.12129838,98955.0,98954.0,0.401257]
[1735184201024,0.12129838,98955.0,98954.0,0.762057]
[1735184201432,0.00954044,98958.0,98957.0,0.040455]
[1735184201632,0.00632171,98967.0,98960.0,0.040454]
[1735184201833,0.00632171,98969.0,98960.0,0.040454]
[1735184202233,0.04045,98970.0,98968.0,0.040451]
[1735184202639,0.04045,98970.0,98969.0,4e-05]
[1735184204642,0.04345,98970.0,98969.0,4e-05]
[1735184210042,0.04345,98970.0,98969.0,0.24065973]
[1735184211037,0.04345,98970.0,98969.0,4e-05]
[1735184213036,0.00632064,98989.0,98969.0,4e-05]
[1735184213339,0.00632064,98989.0,98988.0,4e-05]
[1735184213543,0.04676264,98989.0,98988.0,4e-05]
[1735184214239,0.05176264,98989.0,98988.0,4e-05]
[1735184214439,0.045442,98989.0,98988.0,4e-05]
[1735184215037,0.045442,98989.0,98988.0,0.00104]
[1735184216550,0.045442,98989.0,98988.0,0.00204]
[1735184216849,0.045442,98989.0,98988.0,0.00104]
[1735184217045,0.045442,98989.0,98988.0,0.00204]
[1735184217248,0.040442,98989.0,98988.0,0.00104]
[1735184225358,0.040445,98982.0,98981.0,0.18022403]
[1735184225757,0.040525,98982.0,98981.0,0.18022403]
[1735184226053,0.040447,98978.0,98977.0,0.24061973]
[1735184226449,0.040527,98978.0,98977.0,0.24061973]
[1735184227256,0.040527,98978.0,98977.0,0.18030035]
[1735184227447,0.041527,98978.0,98977.0,0.18030035]
[1735184228965,0.041527,98978.0,98976.0,0.3608]
[1735184229258,0.040449,98973.0,98972.0,0.24061973]
[1735184229753,0.040529,98973.0,98972.0,0.24061973]
[1735184230949,0.042529,98973.0,98972.0,0.24061973]
[1735184234149,0.00208,98973.0,98968.0,0.3012818]
[1735184234350,0.040451,98969.0,98968.0,0.3012818]
[1735184234545,0.040531,98969.0,98968.0,0.3012818]
[1735184235059,0.040531,98969.0,98967.0,0.3012818]
[1735184235464,8e-05,98968.0,98967.0,0.3012818]
[1735184236253,8e-05,98968.0,98966.0,0.3012818]
[1735184236561,0.03177777,98969.0,98966.0,0.3012818]
[1735184236855,0.001,98968.0,98966.0,0.3012818]
[1735184237253,0.001,98968.0,98966.0,0.24094368]
[1735184237450,0.041451,98968.0,98966.0,0.24094368]
[1735184238563,0.001,98968.0,98965.0,0.24094368]
[1735184238864,0.040452,98966.0,98965.0,0.24094368]
[1735184240657,0.041452,98966.0,98965.0,0.24094368]
[1735184242165,0.042452,98966.0,98965.0,0.24094368]
[1735184242565,0.040454,98960.0,98959.0,0.18215567]
[1735184243871,0.040454,98960.0,98959.0,0.0015157]
[1735184245166,0.041454,98960.0,98959.0,0.0015157]
[1735184246768,0.042454,98960.0,98959.0,0.0015157]
[1735184248379,0.041454,98960.0,98959.0,0.0015157]
[1735184249775,0.041454,98960.0,98959.0,0.0025157]
[1735184251177,0.040454,98960.0,98959.0,0.0025157]
[1735184251373,0.041454,98960.0,98959.0,0.0015157]
[1735184251763,0.040454,98960.0,98959.0,0.0015157]
[1735184251968,0.040454,98960.0,98959.0,0.0025157]
[1735184252178,0.040454,98960.0,98959.0,0.0035157]
[1735184252369,0.040454,98960.0,98959.0,0.0025157]
[1735184252677,0.040454,98960.0,98959.0,0.0035157]
[1735184253882,0.040454,98960.0,98959.0,0.24445938]
[1735184255277,0.040454,98960.0,98959.0,0.25437728]
[1735184256181,0.040454,98960.0,98959.0,0.0134336]
[1735184266189,0.040454,98960.0,98959.0,0.0035157]
[1735184268182,0.040454,98960.0,98959.0,0.0025157]
[1735184268384,0.040454,98960.0,98959.0,0.0035157]
[1735184268588,0.040454,98960.0,98959.0,0.0025157]
[1735184268784,0.040454,98960.0,98959.0,0.0035157]
[1735184268990,0.040454,98960.0,98959.0,0.3047975]
[1735184270188,0.040454,98960.0,98959.0,0.32157703]
[1735184274196,0.040454,98960.0,98959.0,0.32057703]
[1735184274387,0.040454,98960.0,98959.0,0.32157703]
[1735184276895,0.040454,98960.0,98959.0,0.32057703]
[1735184278094,0.040454,98960.0,98959.0,0.31957703]
[1735184278293,0.040454,98960.0,98959.0,0.32057703]
[1735184278895,0.040454,98960.0,98959.0,0.0025157]
[1735184279495,0.041454,98960.0,98959.0,0.0025157]
[1735184279997,0.040454,98960.0,98959.0,0.0025157]
[1735184280302,0.041454,98960.0,98959.0,0.0015157]
[1735184281095,0.040454,98960.0,98959.0,0.0015157]
[1735184283500,0.041454,98960.0,98959.0,0.0015157]
[1735184284003,0.040454,98960.0,98959.0,0.31996209]
[1735184284701,0.040454,98960.0,98959.0,0.62163734]
[1735184285997,0.040454,98960.0,98959.0,0.30319095]
[1735184289502,0.040454,98960.0,98959.0,0.31985218]
[1735184292307,0.040454,98960.0,98959.0,0.62134458]
[1735184294805,0.040454,98960.0,98959.0,0.3030081]
[1735184296105,0.05030869,98960.0,98959.0,0.3030081]
[1735184296298,1.23030869,98960.0,98959.0,0.3030081]
[1735184296810,0.05030869,98960.0,98959.0,0.3014924]